{"text_format":"1","workbook":"xlsx","n_sheets":2,"sheets":["Sheet1","Sheet2"],"not_rendered":{"charts":0,"images":0,"macros":1,"external_links":0,"defined_names":0,"comments":0,"pivot_tables":0},"unopened":[],"bounds":{"document_bytes":16777216,"sheet_cells":100000,"rows_first":2000,"rows_last":500,"rows_between":2000,"halvings":0,"cell_chars":16384,"cell_head_chars":4096},"cells_cut":0,"cells_raw":0,"read":"whole","date_system":"1900"}

{"sheet":"Sheet1","index":0,"n_rows":100,"n_cols":93,"rows_kept":100,"cut":false,"hidden":false,"merged":[]}
[1,"Breakfast","Breakfast Ingredients","Duration (min)","Weight","Probability","Low","Up","Random Number",null,"Breakfast","Breakfast Ingredients",null,"Snack","Snack Ingredients","Duration (min)","Weight","Probability","Low","Up","Random Number",null,"Snack","Snack Ingredients",null,"Lunch","Lunch Ingredients","Duration (min)","Weight","Probability","Low","Up","Random Number",null,"Lunch","Lunch Ingredients",null,"Dinner","Dinner Ingredients","Duration (min)","Weight","Probability","Low","Up","Random Number",null,"Dinner","Dinner Ingredients",null,null,null,null,null,null,null,null,null,null,null,null,null,null,null,null,null,null,null,null,null,null,null,"Frequencies",null,null,null,null,null,null,null,null,null,null,null,null,null,null,"Possible combinations"]
[1,"bagel w smoked salmon","bagel, smoked salmon, cream cheese, onion",5,1,{"$f":"E2/SUM($E:$E)","v":4.1666666666666664E-2},0,{"$f":"F2","v":4.1666666666666664E-2},{"$f":"RAND()","v":0.48960756954970108},null,{"$f":"LOOKUP(I2,$G:$H,$B:$B)","v":"fruit smoothie"},{"$f":"LOOKUP(K2,$B:$B,$C:$C)","v":"strawberries, blueberries, banana, milk"},null,"almonds","almonds",1,1,{"$f":"Q2/SUM($Q:$Q)","v":1.8518518518518517E-2},0,{"$f":"S2+R2","v":1.8518518518518517E-2},{"$f":"RAND()","v":0.66027998706997026},null,{"$f":"LOOKUP(U2,$S:$T,$N:$N)","v":"peanuts"},{"$f":"LOOKUP(W2,$N:$N,$O:$O)","v":"peanuts"},null,"apple cheese salad","apple, cheese, lettuce, dressing",10,1,{"$f":"AC2/SUM($AC:$AC)","v":3.125E-2},0,{"$f":"AD2","v":3.125E-2},{"$f":"RAND()","v":0.29684120256046587},null,{"$f":"LOOKUP(AG2,$AE:$AF,$Z:$Z)","v":"chicken avocado sandwich"},{"$f":"LOOKUP(AI2,$Z:$Z,$AA:$AA)","v":"chicken breast, avocado, mayonnaise, lettuce, bread,"},null,"baked penne","penne pasta, tomato sauce, cheese",50,1,{"$f":"AO2/SUM($AO:$AO)","v":1.8867924528301886E-2},0,{"$f":"AQ2+AP2","v":1.8867924528301886E-2},{"$f":"RAND()","v":0.30290893674933095},null,{"$f":"LOOKUP(AS2,$AQ:$AR,$AL:$AL)","v":"game hens with apple salad"},{"$f":"LOOKUP(AU2,$AL:$AL,$AM:$AM)","v":"game hen, marinade (italian salad dressing), spinach, apples"},null,null,null,null,null,null,"WEEK 1","Breakfast","Snack 1","Lunch","Snack 2","Dinner",null,null,null,"Shopping List",null,"Breakfast","Snack 1","Lunch","Snack 2","Dinner",null,"Breakfast","Snack 1","Lunch","Snack 2","Dinner",null,"Breakfast dup check","Lunch dup check","Dinner dup check",null,"Snacks same for any day check",null,"French toast check",null,null,"Breakfast","Snack 1","Lunch","Snack 2","Dinner"]
[1,"banana w peanut butter","banana, peanut butter",2,1,4.1666666666666664E-2,{"$f":"H2","v":4.1666666666666664E-2},{"$f":"G3+F3","v":8.3333333333333329E-2},0.54783506008232785,null,"ham and egg breakfast taco",{"$f":"LOOKUP(K3,$B:$B,$C:$C)","v":"tortilla, ham, egg"},null,"ants on a log","celery, peanut butter, raisins",10,1,1.8518518518518517E-2,{"$f":"T2","v":1.8518518518518517E-2},{"$f":"S3+R3","v":3.7037037037037035E-2},0.83480728680296412,null,"sardines","can of sardines",null,"bagel sandwich","bagel, cream cheese, turkey",10,1,3.125E-2,{"$f":"AF2","v":3.125E-2},{"$f":"AE3+AD3","v":6.25E-2},0.93884782741509465,null,"turkey chili",{"$f":"LOOKUP(AI3,$Z:$Z,$AA:$AA)","v":"ground turkey, onion, canned tomatoes, garlic, paprika, cumin"},null,"baked ziti","ziti pasta, tomato sauce, cheese",50,1,{"$f":"AO3/SUM($AO:$AO)","v":1.8867924528301886E-2},{"$f":"AR2","v":1.8867924528301886E-2},{"$f":"AQ3+AP3","v":3.7735849056603772E-2},{"$f":"RAND()","v":0.15200111217724488},null,"chicken w apple butter, white rice","chicken tenderloin, apple butter, rice",null,null,null,null,null,null,"Monday",{"$f":"K2","v":"fruit smoothie"},{"$f":"W2","v":"peanuts"},{"$f":"AI2","v":"chicken avocado sandwich"},{"$f":"W16","v":"peanut butter and jelly sandwich"},{"$f":"AU2","v":"game hens with apple salad"},null,null,null,null,null,{"$f":"BD3","v":"fruit smoothie"},{"$f":"BE3","v":"peanuts"},"chicken avocado sandwich",{"$f":"BG3","v":"peanut butter and jelly sandwich"},{"$f":"BH3","v":"game hens with apple salad"},null,{"$f":"COUNTIF($BN$3:$BN$16,BN3)","v":2},{"$f":"COUNTIF($BO$3:$BO$16,BO3)","v":1},{"$f":"COUNTIF($BP$3:$BP$16,BP3)","v":3},{"$f":"COUNTIF($BQ$3:$BQ$16,BQ3)","v":1},{"$f":"COUNTIF($BR$3:$BR$16,BR3)","v":1},null,null,null,null,null,{"$f":"IF(BO3=BQ3,1,0)","v":0},null,{"$f":"IF(BN3=\"french toast\",1,0)","v":0},null,null,{"$f":"COUNTA(B:B)","v":25},{"$f":"COUNTA(N:N)","v":55},{"$f":"COUNTA(Z:Z)","v":33},{"$f":"COUNTA(N:N)","v":55},{"$f":"COUNTA(AL:AL)","v":54},{"$f":"CI3*CJ3*CK3*CL3*CM3","v":134763750},"day"]
[1,"Cheerios","Cheerios, milk",3,1,4.1666666666666664E-2,8.3333333333333329E-2,0.125,0.24699027750331659,null,"cottage cheese w honey","cottage cheese, honey",null,"apple","apple",1,1,1.8518518518518517E-2,{"$f":"T3","v":3.7037037037037035E-2},{"$f":"S4+R4","v":5.5555555555555552E-2},0.52020064134834909,null,"kiwi","kiwi",null,"baked potato","potato, cheese, sour cream, chives, bacon",10,1,3.125E-2,{"$f":"AF3","v":6.25E-2},{"$f":"AE4+AD4","v":9.375E-2},0.2966754563382501,null,"chicken avocado sandwich","chicken breast, avocado, mayonnaise, lettuce, bread,",null,"barbeque chicken","chicken breast/tenderloins, bbq sauce",15,1,1.8867924528301886E-2,{"$f":"AR3","v":3.7735849056603772E-2},{"$f":"AQ4+AP4","v":5.6603773584905662E-2},0.11761506801557609,null,"chicken quesadilla","chicken, tortilla, cheese, cream cheese",null,null,null,null,null,null,"Tuesday",{"$f":"K3","v":"ham and egg breakfast taco"},{"$f":"W3","v":"sardines"},{"$f":"AI3","v":"turkey chili"},{"$f":"W17","v":"prunes"},{"$f":"AU3","v":"chicken w apple butter, white rice"},null,null,null,null,null,{"$f":"BD4","v":"ham and egg breakfast taco"},{"$f":"BE4","v":"sardines"},{"$f":"BF4","v":"turkey chili"},{"$f":"BG4","v":"prunes"},{"$f":"BH4","v":"chicken w apple butter, white rice"},null,{"$f":"COUNTIF($BN$3:$BN$16,BN4)","v":1},{"$f":"COUNTIF($BO$3:$BO$16,BO4)","v":2},{"$f":"COUNTIF($BP$3:$BP$16,BP4)","v":1},{"$f":"COUNTIF($BQ$3:$BQ$16,BQ4)","v":1},{"$f":"COUNTIF($BR$3:$BR$16,BR4)","v":1},null,{"$f":"IF(BN4=BN3,1,0)","v":0},{"$f":"IF(BP4=BP3,1,0)","v":0},{"$f":"IF(BR4=BR3,1,0)","v":0},null,{"$f":"IF(BO4=BQ4,1,0)","v":0},null,{"$f":"IF(BN4=\"french toast\",1,0)","v":0},null,null,null,null,null,null,null,{"$f":"CN3*7","v":943346250},"week"]
[1,"chorizo and egg breakfast taco","tortilla, chorizo, egg",8,1,4.1666666666666664E-2,0.125,0.16666666666666666,0.80846741085102458,null,"scrambled eggs","eggs, cheese, salt/pepper",null,"Babybel cheese","Babybel cheeses",1,1,1.8518518518518517E-2,5.5555555555555552E-2,7.407407407407407E-2,0.30609514218511258,null,"cottage cheese","cottage cheese",null,"beef and swiss wrap","wrap, cheese slices, roast beef slices, spinach",10,1,3.125E-2,9.375E-2,0.125,0.11688387677418532,null,"beef and swiss wrap","wrap, cheese slices, roast beef slices, spinach",null,"bistec encebollada","steak, onion, oil",150,1,1.8867924528301886E-2,5.6603773584905662E-2,7.5471698113207544E-2,0.38009969429552104,null,"grilled steak","steak, butter",null,null,null,null,null,null,"Wednesday","cottage cheese w honey","kiwi","chicken avocado sandwich","Fig Newtons","chicken quesadilla",null,null,null,null,null,"cottage cheese w honey","kiwi","chicken avocado sandwich","Fig Newtons","chicken quesadilla",null,1,1,3,1,1,null,{"$f":"IF(BN5=BN4,1,0)","v":0},{"$f":"IF(BP5=BP4,1,0)","v":0},{"$f":"IF(BR5=BR4,1,0)","v":0},null,0,null,0,null,null,null,null,null,null,null,{"$f":"CN3*14","v":1886692500},"2 weeks"]
[1,"cinnamon raisin bread","bread, raisins, cinnamon, apple butter",3,1,4.1666666666666664E-2,0.16666666666666666,{"$f":"G6+F6","v":0.20833333333333331},0.29725989437794387,null,"croissant","croissant, butter",null,"bag of chips","bag of chips",1,1,1.8518518518518517E-2,7.407407407407407E-2,9.2592592592592587E-2,0.56762193964242624,null,"macadamia nuts","macadamia nuts",null,"beef nachos","tortilla chips, ground beef, cheese, salsa",15,1,3.125E-2,0.125,0.15625,0.99083424392553021,null,"updated peanut butter sandwich","bread, peanut butter, applesauce",null,"cheese ravioli soup","ravioli, cheese, cream of onion soup",25,1,1.8867924528301886E-2,7.5471698113207544E-2,9.4339622641509427E-2,0.57408003990675116,null,"lasagna w beef","lasagna, ground beef, tomato sauce",null,null,null,null,null,null,"Thursday","scrambled eggs","cottage cheese","beef and swiss wrap","sardines","grilled steak",null,null,null,null,null,"scrambled eggs","cottage cheese","beef and swiss wrap","sardines","grilled steak",null,1,2,1,2,1,null,0,0,0,null,0,null,0]
[1,"cottage cheese w honey","cottage cheese, honey",2,1,4.1666666666666664E-2,0.20833333333333331,0.24999999999999997,1.975978853559246E-2,null,"bagel w smoked salmon","bagel, smoked salmon, cream cheese, onion",null,"banana","banana",1,1,1.8518518518518517E-2,9.2592592592592587E-2,0.1111111111111111,7.1830241821320584E-2,null,"Babybel cheese","Babybel cheeses",null,"black bean soup","canned beans, onion, garlic, chicken broth, chili powder",40,1,3.125E-2,0.15625,0.1875,0.33116448597005643,null,"chicken noodle soup","chicken noodle soup",null,"chicken breast w roasted tomatoes, goat cheese","chicken breast, can of roasted tomatoes, goat cheese",25,1,1.8867924528301886E-2,9.4339622641509427E-2,0.11320754716981131,0.58881676830165119,null,"mac n cheese w spicy queso","macaroni, cheese, milk, butter, can of queso salsa",null,null,null,null,null,null,"Friday","croissant","macadamia nuts","updated peanut butter sandwich","sardines","lasagna w beef",null,null,null,null,null,"croissant","macadamia nuts","updated peanut butter sandwich","sardines","lasagna w beef",null,1,1,1,2,1,null,0,0,0,null,0,null,0]
[1,"cream of wheat","cream of wheat",5,1,4.1666666666666664E-2,0.24999999999999997,{"$f":"G8+F8","v":0.29166666666666663},0.91688556976001312,null,"yogurt","yogurt",null,"bread and olive oil","italian/french bread, olive oil, garlic, butter",3,1,1.8518518518518517E-2,0.1111111111111111,0.12962962962962962,2.4049641635835783E-2,null,"ants on a log","celery, peanut butter, raisins",null,"blueberry walnut salad","blueberries, walnuts, romaine, dressing, goat cheese",10,1,3.125E-2,{"$f":"AF7","v":0.1875},{"$f":"AE8+AD8","v":0.21875},0.57061704830841808,null,"hamburger","hamburger, buns, ketchup, mustard",null,"chicken quesadilla","chicken, tortilla, cheese, cream cheese",45,1,1.8867924528301886E-2,0.11320754716981131,0.13207547169811321,0.8933841469004058,null,"stuffed shells","large pasta shells, ricotta cheese, additional cheese, tomato sauce",null,null,null,null,null,null,"Saturday","bagel w smoked salmon","Babybel cheese","chicken noodle soup","Wheat Thins","mac n cheese w spicy queso",null,null,null,null,null,"bagel w smoked salmon","Babybel cheese","chicken noodle soup","Wheat Thins","mac n cheese w spicy queso",null,2,1,1,1,1,null,0,0,0,null,0,null,0]
[1,"croissant","croissant, butter",2,1,4.1666666666666664E-2,0.29166666666666663,0.33333333333333331,0.34331436707359342,null,"english muffin","english muffin, butter, jam",null,"bruschetta","italian/french bread, diced tomato, olive oil",1,1,1.8518518518518517E-2,0.12962962962962962,{"$f":"S9+R9","v":0.14814814814814814},0.30922843400108935,null,"cottage cheese","cottage cheese",null,"broccoli cheddar soup","cheddar cheese, broccoli, butter, milk, chicken broth, onion",45,1,3.125E-2,0.21875,0.25,0.1608345875820576,null,"black bean soup","canned beans, onion, garlic, chicken broth, chili powder",null,"chicken w apple butter, salad","chicken tenderloin, apple butter, lettuce/spinach",70,1,1.8867924528301886E-2,0.13207547169811321,0.15094339622641509,0.40783115625543953,null,"grilled steak w mashed potatoes","steak, mashed potato",null,null,null,null,null,null,"Sunday","yogurt","ants on a log","hamburger","celery w peanut butter","stuffed shells",null,null,null,null,null,"yogurt","ants on a log","hamburger","celery w peanut butter","stuffed shells",null,2,1,1,1,1,null,0,0,0,null,0,null,0]
[1,"english muffin","english muffin, butter, jam",3,1,4.1666666666666664E-2,0.33333333333333331,0.375,0.18894139858866232,null,"cinnamon raisin bread","bread, raisins, cinnamon, apple butter",null,"carrots w ranch","carrots, ranch dressing",2,1,1.8518518518518517E-2,0.14814814814814814,0.16666666666666666,0.72481584480252104,null,"popcorn","popcorn, butter, salt",null,"caesar salad","salad, dressing, croutons",10,1,3.125E-2,0.25,0.28125,9.1351562776940121E-2,null,"baked potato","potato, cheese, sour cream, chives, bacon",null,"chicken w apple butter, white rice","chicken tenderloin, apple butter, rice",70,1,1.8867924528301886E-2,0.15094339622641509,0.16981132075471697,0.77575408716500438,null,"rotissere chicken, from grocery store","rotissere chicken",null,null,null,null,null,null,null,null,null,null,null,null,null,null,null,null,null,{"$f":"BD12","v":"english muffin"},{"$f":"BE12","v":"cottage cheese"},"black bean soup","bag of chips",{"$f":"BH12","v":"grilled steak w mashed potatoes"},null,1,2,1,1,1,null,0,0,0,null,0,null,0]
[1,"french toast","toast, eggs, cinnamon",10,1,4.1666666666666664E-2,0.375,0.41666666666666669,0.11019025574793329,null,"Cheerios","Cheerios, milk",null,"cashews","cashews",1,1,1.8518518518518517E-2,0.16666666666666666,0.18518518518518517,{"$f":"RAND()","v":0.32289353181243463},null,"crackers w tuna","crackers, can of tunafish",null,"chicken avocado sandwich","chicken breast, avocado, mayonnaise, lettuce, bread,",10,1,3.125E-2,0.28125,0.3125,0.68165646367583954,null,"PBJ w banana tortilla","tortilla, banana, peanut butter, jelly",null,"chicken w balsamic orzo w cherry tomatoes","chicken tenderloin, orzo, cherry tomatoes",35,1,1.8867924528301886E-2,0.16981132075471697,0.18867924528301885,0.83948742730978232,null,"speghetti carbonara","speghetti, bacon, butter, milk, tomato sauce",null,null,null,null,null,null,"WEEK 2","Breakfast","Snack 1","Lunch","Snack 2","Dinner",null,null,null,null,null,{"$f":"BD13","v":"cinnamon raisin bread"},{"$f":"BE13","v":"popcorn"},{"$f":"BF13","v":"baked potato"},"peanuts",{"$f":"BH13","v":"rotissere chicken, from grocery store"},null,1,1,1,2,1,null,0,0,0,null,0,null,0]
[1,"fruit assortment","strawberries, blueberries, banana, apple",5,1,4.1666666666666664E-2,{"$f":"H11","v":0.41666666666666669},{"$f":"G12+F12","v":0.45833333333333337},0.86435964475967753,null,"smoked salmon and cheese","smoked salmon, cheddar, havarti, swiss cheese",null,"celery w peanut butter","celery, peanut butter",2,1,1.8518518518518517E-2,0.18518518518518517,0.20370370370370369,4.4363756131516663E-2,null,"apple","apple",null,"chicken noodle soup","chicken noodle soup",10,1,3.125E-2,0.3125,0.34375,3.532640191056613E-2,null,"bagel sandwich","bagel, cream cheese, turkey",null,"chicken w sundried tomatoes","chicken tenderloin, sundried tomatoes",20,1,1.8867924528301886E-2,0.18867924528301885,0.20754716981132074,0.67514174431110963,null,"penne w chicken and creamy pesto","penne pasta, chicken tenderloin, pesto sauce",null,null,null,null,null,null,"Monday",{"$f":"K9","v":"english muffin"},{"$f":"W9","v":"cottage cheese"},{"$f":"AI9","v":"black bean soup"},{"$f":"W23","v":"bag of chips"},{"$f":"AU9","v":"grilled steak w mashed potatoes"},null,null,null,null,null,"Cheerios","crackers w tuna","PBJ w banana tortilla","pretzels","speghetti carbonara",null,1,1,1,1,1,null,0,0,0,null,0,null,0]
[1,"fruit smoothie","strawberries, blueberries, banana, milk",5,1,4.1666666666666664E-2,0.45833333333333337,0.5,0.95352587966702362,null,"yogurt","yogurt",null,"cherry tomatoes","cherry tomatoes",1,1,1.8518518518518517E-2,0.20370370370370369,0.22222222222222221,0.85128452407282418,null,"sardines","can of sardines",null,"club sandwich","bread, bacon, mayonnaise, lettuce, turkey slices, tomato",10,1,3.125E-2,0.34375,0.375,0.30858994027031361,null,"chicken avocado sandwich","chicken breast, avocado, mayonnaise, lettuce, bread,",null,"chuleta w rice and beans","pork chop, rice, beans",85,1,1.8867924528301886E-2,0.20754716981132074,0.22641509433962262,0.55931927720529129,null,"honey BBQ chicken tenderloin, w baked parmesan potato","chicken tenderloin, potato, bbq sauce, parmesan cheese",null,null,null,null,null,null,"Tuesday",{"$f":"K10","v":"cinnamon raisin bread"},{"$f":"W10","v":"popcorn"},{"$f":"AI10","v":"baked potato"},{"$f":"W24","v":"peanuts"},{"$f":"AU10","v":"rotissere chicken, from grocery store"},null,null,null,null,null,"smoked salmon and cheese","apple","bagel sandwich","graham crackers","penne w chicken and creamy pesto",null,1,1,1,1,1,null,0,0,0,null,0,null,0]
[1,"gerber baby rice cereal","gerber baby rice cereal",5,1,4.1666666666666664E-2,0.5,0.54166666666666663,4.8975577568932671E-4,null,"bagel w smoked salmon","bagel, smoked salmon, cream cheese, onion",null,"chips w hummus","chips, hummus",2,1,1.8518518518518517E-2,0.22222222222222221,0.24074074074074073,0.61580352475070943,null,"olives","green and black olives",null,"cobb salad","lettuce, spinacy, hardboiled eggs, ham, cheese, dressing",10,1,3.125E-2,0.375,0.40625,0.36664448935641158,null,"club sandwich","bread, bacon, mayonnaise, lettuce, turkey slices, tomato",null,"Dejourno pizza","Dejourno pizza",25,1,1.8867924528301886E-2,0.22641509433962262,0.2452830188679245,0.26266879665934439,null,"fried pork chop, plantains","pork chop, plantains",null,null,null,null,null,null,"Wednesday","Cheerios","crackers w tuna","PBJ w banana tortilla","pretzels","speghetti carbonara",null,null,null,null,null,"yogurt","sardines","chicken avocado sandwich","kiwi","honey BBQ chicken tenderloin, w baked parmesan potato",null,2,2,3,1,1,null,0,0,0,null,0,null,0]
[1,"ham and egg breakfast taco","tortilla, ham, egg",8,1,4.1666666666666664E-2,0.54166666666666663,0.58333333333333326,0.49847324424277151,null,"fruit smoothie","strawberries, blueberries, banana, milk",null,"chips w salsa","chips, salsa",2,1,1.8518518518518517E-2,0.24074074074074073,0.25925925925925924,0.99216493569164843,null,"yogurt","yogurt",null,"cucumber sandwich","bread, cucumber, cream cheese",10,1,3.125E-2,0.40625,0.4375,0.13360119080726651,null,"beef nachos","tortilla chips, ground beef, cheese, salsa",null,"fried pork chop, plantains","pork chop, plantains",35,1,1.8867924528301886E-2,0.2452830188679245,0.26415094339622641,0.42100317235786333,null,"grilled steaks, w corn","steak, corn on the cob, butter",null,null,null,null,null,null,"Thursday","smoked salmon and cheese","apple","bagel sandwich","graham crackers","penne w chicken and creamy pesto",null,null,null,null,null,"bagel w smoked salmon","olives","club sandwich","peanuts","fried pork chop, plantains",null,2,1,1,2,1,null,0,0,0,null,0,null,0]
[1,"hardboiled eggs","eggs",25,1,4.1666666666666664E-2,0.58333333333333326,0.62499999999999989,null,null,null,null,null,"cielito lindo","tortilla chips, cream cheese, sour cream, lattuce, salsa, ham slices, shredded cheese",15,1,1.8518518518518517E-2,0.25925925925925924,0.27777777777777779,{"$f":"RAND()","v":0.64746576265119771},null,"peanut butter and jelly sandwich","bread, peanut butter, jelly",null,"egg drop soup","chicken broth, egg",10,1,3.125E-2,0.4375,0.46875,null,null,null,null,null,"fried salmon","salmon, oil",25,1,1.8867924528301886E-2,0.26415094339622641,0.28301886792452829,null,null,null,null,null,null,null,null,null,null,"Friday","yogurt","sardines","chicken avocado sandwich","kiwi","honey BBQ chicken tenderloin, w baked parmesan potato",null,null,null,null,null,"fruit smoothie","yogurt","beef nachos","chips w salsa","grilled steaks, w corn",null,2,1,1,1,1,null,0,0,0,null,0,null,0]
[1,"hash browns","hash browns, salt/pepper",15,1,4.1666666666666664E-2,0.62499999999999989,0.66666666666666652,null,null,null,null,null,"club crackers","club crackers, cheese",3,1,1.8518518518518517E-2,0.27777777777777779,0.29629629629629628,0.77181164534309765,null,"prunes","prunes",null,"grilled cheese","bread, cheddar cheese, butter",10,1,3.125E-2,0.46875,0.5,null,null,null,null,null,"fried talapia/cod","tilapia, oil",25,1,1.8867924528301886E-2,0.28301886792452829,0.30188679245283018,null,null,null,null,null,null,null,null,null,null,"Saturday","bagel w smoked salmon","olives","club sandwich","peanuts","fried pork chop, plantains"]
[1,"pancakes","pancake batter, syrup/honey",10,1,4.1666666666666664E-2,0.66666666666666652,0.70833333333333315,null,null,null,null,null,"cottage cheese","cottage cheese",1,1,1.8518518518518517E-2,0.29629629629629628,0.31481481481481477,0.38028709058597077,null,"Fig Newtons","Fig Newtons",null,"grilled portabello w cheese","portabello mushroom, cheddar cheese",10,1,3.125E-2,0.5,0.53125,null,null,null,null,null,"game hens with apple salad","game hen, marinade (italian salad dressing), spinach, apples",90,1,1.8867924528301886E-2,0.30188679245283018,0.32075471698113206,null,null,null,null,null,null,null,null,null,null,"Sunday","fruit smoothie","yogurt","beef nachos","chips w salsa","grilled steaks, w corn",null,null,null,null,null,null,null,null,null,null,null,null,null,null,null,null,null,{"$f":"SUM(BZ4:BZ16)","v":0},{"$f":"SUM(CA4:CA16)","v":0},0,null,{"$f":"SUM(CD3:CD16)","v":0},null,{"$f":"SUM(CF3:CF16)","v":0}]
[1,"Pop Tart","Pop Tart",3,1,4.1666666666666664E-2,0.70833333333333315,0.74999999999999978,null,null,null,null,null,"crackers w tuna","crackers, can of tunafish",2,1,1.8518518518518517E-2,0.31481481481481477,0.33333333333333326,0.84230451224668368,null,"sardines","can of sardines",null,"ham and cheese sandwich","bread, ham slices, cheese, mayonnaise",10,1,3.125E-2,0.53125,0.5625,null,null,null,null,null,"game hens with mashed potatoes","game hen, marinade (italian salad dressing), mashed potatos",75,1,1.8867924528301886E-2,0.32075471698113206,0.33962264150943394]
[1,"Raisin Bran","Raisin Bran, milk",3,1,4.1666666666666664E-2,0.74999999999999978,0.79166666666666641,null,null,null,null,null,"cranberries","cranberries",1,1,1.8518518518518517E-2,0.33333333333333326,0.35185185185185175,0.84558614025811529,null,"sardines","can of sardines",null,"hamburger","hamburger, buns, ketchup, mustard",10,1,3.125E-2,0.5625,0.59375,null,null,null,null,null,"garlic pasta and grilled chicken","penne pasta, garlic tomato sauce, chicken tenderloin",75,1,1.8867924528301886E-2,0.33962264150943394,0.35849056603773582,null,null,null,null,null,null,null,null,null,null,null,null,null,null,null,null,null,"Press CTRL M to simulate"]
[1,"scrambled eggs","eggs, cheese, salt/pepper",8,1,4.1666666666666664E-2,0.79166666666666641,0.83333333333333304,null,null,null,null,null,"dates","dates",1,1,1.8518518518518517E-2,{"$f":"T20","v":0.35185185185185175},{"$f":"S21+R21","v":0.37037037037037024},0.97082984461446742,null,"Wheat Thins","Wheat Thins",null,"hot dog","hot dog, buns, ketchup",10,1,3.125E-2,0.59375,0.625,null,null,null,null,null,"grilled chicken kabobs","chicken breast, green peppers, onion",20,1,1.8867924528301886E-2,0.35849056603773582,0.37735849056603771,null,null,null,null,null,null,null,null,null,null,null,null,"Refresh list (F9) if:","X","Count","Refresh Indicator",null,"Iterations",100]
[1,"smoked salmon and cheese","smoked salmon, cheddar, havarti, swiss cheese",3,1,4.1666666666666664E-2,0.83333333333333304,0.87499999999999967,null,null,null,null,null,"Fig Newtons","Fig Newtons",1,1,1.8518518518518517E-2,0.37037037037037024,0.38888888888888873,0.19796290753713475,null,"celery w peanut butter","celery, peanut butter",null,"lettuce wrap","lettuce, turkey slices, shrimp, ground beef",15,1,3.125E-2,0.625,0.65625,null,null,null,null,null,"grilled steak","steak, butter",15,1,1.8867924528301886E-2,0.37735849056603771,0.39622641509433959,null,null,null,null,null,null,null,null,null,null,null,null,"Breakfast appears more than X times in 2 weeks",3,{"$f":"MAX(BT3:BT16)","v":2},{"$f":"IF(BG22>BF22,\"REFRESH\",\"\")","v":""},null,"Current Iteration",100]
[1,"waffles w berries","waffles, blueberries, honey, butter",5,1,4.1666666666666664E-2,0.87499999999999967,0.9166666666666663,null,null,null,null,null,"fruit roll up","fruit roll up",1,1,1.8518518518518517E-2,0.38888888888888873,0.40740740740740722,8.5016848637005538E-2,null,"bag of chips","bag of chips",null,"PBJ w banana tortilla","tortilla, banana, peanut butter, jelly",5,1,3.125E-2,0.65625,0.6875,null,null,null,null,null,"grilled steak w mashed potatoes","steak, mashed potato",45,1,1.8867924528301886E-2,0.39622641509433959,0.41509433962264147,null,null,null,null,null,null,null,null,null,null,null,null,"Snack 1 appears more than X times in 2 weeks",4,{"$f":"MAX(BU3:BU16)","v":2},{"$f":"IF(BG23>BF23,\"REFRESH\",\"\")","v":""},null,"Indicator to refresh",{"$f":"IF(OR(BH22=\"REFRESH\",BH23=\"REFRESH\",BH24=\"REFRESH\",BH25=\"REFRESH\",BH26=\"REFRESH\",BH27=\"REFRESH\",BH28=\"REFRESH\",BH29=\"REFRESH\",BH30=\"REFRESH\",BH31=\"REFRESH\",BH32=\"REFRESH\",BH33=\"REFRESH\"),1,0)","v":1}]
[0,"yogurt","yogurt",1,1,4.1666666666666664E-2,0.9166666666666663,0.95833333333333293,null,null,null,null,null,"graham crackers","graham crackers, peanut butter",3,1,1.8518518518518517E-2,0.40740740740740722,0.42592592592592571,0.65705548624046384,null,"peanuts","peanuts",null,"pita pocket","pita bread, ham slices, turkey slices, cheese, lettuce",10,1,3.125E-2,0.6875,0.71875,null,null,null,null,null,"grilled steaks, w corn","steak, corn on the cob, butter",45,1,1.8867924528301886E-2,0.41509433962264147,0.43396226415094336,null,null,null,null,null,null,null,null,null,null,null,null,"Lunch appears more than X times in 2 weeks",3,{"$f":"MAX(BV3:BV16)","v":3},{"$f":"IF(BG24>BF24,\"REFRESH\",\"\")","v":""},null,"% time good selections",{"$f":"1-BK25","v":0.10999999999999999}]
[1,"yogurt w granola","yogurt, granola",2,1,4.1666666666666664E-2,0.95833333333333293,0.99999999999999956,null,null,null,null,null,"granola","granola",1,1,1.8518518518518517E-2,0.42592592592592571,0.4444444444444442,{"$f":"RAND()","v":0.75658077679676961},null,"pretzels","pretzels",null,"potato salad w bacon","potato, bacon, onion",20,1,3.125E-2,0.71875,0.75,null,null,null,null,null,"grilled steaks, w roasted veggies","steak, green/red bell peppers, onion",50,1,1.8867924528301886E-2,0.43396226415094336,0.45283018867924524,null,null,null,null,null,null,null,null,null,null,null,null,"Snack 2 appears more than X times in 2 weeks",4,{"$f":"MAX(BW3:BW16)","v":2},{"$f":"IF(BG25>BF25,\"REFRESH\",\"\")","v":""},null,"% time need to refresh list",{"$f":"AVERAGE(A:A)","v":0.89}]
[1,null,null,null,null,null,null,null,null,null,null,null,null,"granola bar","granola bar",1,1,1.8518518518518517E-2,0.4444444444444442,0.46296296296296269,0.42143427199586547,null,"graham crackers","graham crackers, peanut butter",null,"potstickers and rice","potstickers, rice",20,1,3.125E-2,0.75,0.78125,null,null,null,null,null,"ground beef tacos","ground beef, tortilla, cheese, cream cheese",40,1,1.8867924528301886E-2,0.45283018867924524,0.47169811320754712,null,null,null,null,null,null,null,null,null,null,null,null,"Dinner appears more than X times in 2 weeks",3,{"$f":"MAX(BX3:BX16)","v":1},{"$f":"IF(BG26>BF26,\"REFRESH\",\"\")","v":""},null,"1 good every X refreshes",{"$f":"1/BK24","v":9.0909090909090917}]
[1,null,null,null,null,null,null,null,null,null,null,null,null,"grapes","grapes",1,1,1.8518518518518517E-2,0.46296296296296269,0.48148148148148118,0.52912393558189308,null,"kiwi","kiwi",null,"ramen noodles","top ramen",10,1,3.125E-2,0.78125,0.8125,null,null,null,null,null,"ground turkey tacos","ground turkey, tortilla, cheese, cream cheese",40,1,1.8867924528301886E-2,0.47169811320754712,0.490566037735849,null,null,null,null,null,null,null,null,null,null,null,null,"Same Breakfast 2 or more days in a row",null,null,{"$f":"IF(BZ18>0,\"REFRESH\",\"\")","v":""}]
[1,null,null,null,null,null,null,null,null,null,null,null,null,"hazelnuts","hazelnuts",1,1,1.8518518518518517E-2,0.48148148148148118,0.49999999999999967,0.64891413541875687,null,"peanuts","peanuts",null,"sloppy joes","ground beef, onion, celery, hamburger buns",35,1,3.125E-2,0.8125,0.84375,null,null,null,null,null,"ham and mashed potatoes","ham, mashed potatoes",15,1,1.8867924528301886E-2,0.490566037735849,0.50943396226415094,null,null,null,null,null,null,null,null,null,null,null,null,"Same Lunch 2 or more days in a row",null,null,{"$f":"IF(CA18>0,\"REFRESH\",\"\")","v":""}]
[1,null,null,null,null,null,null,null,null,null,null,null,null,"honey sticks","honey sticks",1,1,1.8518518518518517E-2,0.49999999999999967,0.51851851851851816,0.24526743612730528,null,"chips w salsa","chips, salsa",null,"spicy cucumber salad","cucumber, chili oil",10,1,3.125E-2,0.84375,0.875,null,null,null,null,null,"honey BBQ chicken tenderloin, french fries","chicken tenderloin, potato, bbq sauce",45,1,1.8867924528301886E-2,0.50943396226415094,0.52830188679245282,null,null,null,null,null,null,null,null,null,null,null,null,"Same Dinner 2 or more days in a row",null,null,{"$f":"IF(CB18>0,\"REFRESH\",\"\")","v":""}]
[0,null,null,null,null,null,null,null,null,null,null,null,null,"kiwi","kiwi",1,1,1.8518518518518517E-2,0.51851851851851816,0.53703703703703665,null,null,null,null,null,"tomato soup","tomato soup",10,1,3.125E-2,0.875,0.90625,null,null,null,null,null,"honey BBQ chicken tenderloin, mashed potato","chicken tenderloin, mashed potato, bbq sauce",30,1,1.8867924528301886E-2,0.52830188679245282,0.54716981132075471,null,null,null,null,null,null,null,null,null,null,null,null,"Snack 1 and Snack 2 are the same for any day",null,null,{"$f":"IF(CD18>0,\"REFRESH\",\"\")","v":""}]
[1,null,null,null,null,null,null,null,null,null,null,null,null,"krab w dip","imitation crap, coctail sauce",5,1,1.8518518518518517E-2,0.53703703703703665,0.55555555555555514,null,null,null,null,null,"tortilla pizza","tortilla, tomato sauce, pepperoni, cheese",10,1,3.125E-2,0.90625,0.9375,null,null,null,null,null,"honey BBQ chicken tenderloin, w baked parmesan potato","chicken tenderloin, potato, bbq sauce, parmesan cheese",50,1,1.8867924528301886E-2,0.54716981132075471,0.56603773584905659,null,null,null,null,null,null,null,null,null,null,null,null,"French toast for Breakfast does not appear in 2 weeks",null,null,{"$f":"IF(CF18=0,\"REFRESH\",\"\")","v":"REFRESH"}]
[0,null,null,null,null,null,null,null,null,null,null,null,null,"macadamia nuts","macadamia nuts",1,1,1.8518518518518517E-2,0.55555555555555514,0.57407407407407363,null,null,null,null,null,"turkey chili","ground turkey, onion, canned tomatoes, garlic, paprika, cumin",45,1,3.125E-2,0.9375,0.96875,null,null,null,null,null,"lasagna w beef","lasagna, ground beef, tomato sauce",60,1,1.8867924528301886E-2,0.56603773584905659,0.58490566037735847,null,null,null,null,null,null,null,null,null,null,null,null,"eating out appears more than X times",4,{"$f":"COUNTIF(BH3:BH18,AL35)+COUNTIF(BH3:BH18,AL54)","v":0},{"$f":"IF(BG32>BF32,\"REFRESH\",\"\")","v":""}]
[1,null,null,null,null,null,null,null,null,null,null,null,null,"mixed vegetables","frozen mixed vegetables, salt, butter",5,1,1.8518518518518517E-2,0.57407407407407363,0.59259259259259212,null,null,null,null,null,"updated peanut butter sandwich","bread, peanut butter, applesauce",5,1,3.125E-2,0.96875,1,null,null,null,null,null,"mac n cheese w spicy queso","macaroni, cheese, milk, butter, can of queso salsa",25,1,1.8867924528301886E-2,0.58490566037735847,0.60377358490566035,null,null,null,null,null,null,null,null,null,null,null,null,"eating out appears less than X times",1,{"$f":"BG32","v":0},{"$f":"IF(BG33<BF33,\"REFRESH\",\"\")","v":"REFRESH"}]
[1,null,null,null,null,null,null,null,null,null,null,null,null,"nectarine","nectarine",1,1,1.8518518518518517E-2,0.59259259259259212,0.61111111111111061,null,null,null,null,null,null,null,null,null,null,null,null,null,null,null,null,null,"macaroni and cheese","macaroni, cheese, milk, butter",10,1,1.8867924528301886E-2,0.60377358490566035,0.62264150943396224]
[0,null,null,null,null,null,null,null,null,null,null,null,null,"olives","green and black olives",2,1,1.8518518518518517E-2,0.61111111111111061,0.6296296296296291,null,null,null,null,null,null,null,null,null,null,null,null,null,null,null,null,null,"Mexican restaurant","tacos, tortilla chips",0,1,1.8867924528301886E-2,0.62264150943396224,0.64150943396226412]
[1,null,null,null,null,null,null,null,null,null,null,null,null,"peanut butter and jelly sandwich","bread, peanut butter, jelly",3,1,1.8518518518518517E-2,0.6296296296296291,0.64814814814814758,null,null,null,null,null,null,null,null,null,null,null,null,null,null,null,null,null,"mozz tomato panini w greek salad","fresh mozz cheese, tomato, french bread, spinach, feta cheese",30,1,1.8867924528301886E-2,0.64150943396226412,0.660377358490566]
[1,null,null,null,null,null,null,null,null,null,null,null,null,"peanuts","peanuts",1,1,1.8518518518518517E-2,0.64814814814814758,0.66666666666666607,null,null,null,null,null,null,null,null,null,null,null,null,null,null,null,null,null,"penne w chicken and creamy pesto","penne pasta, chicken tenderloin, pesto sauce",40,1,1.8867924528301886E-2,0.660377358490566,0.67924528301886788,null,null,null,"Requirements"]
[1,null,null,null,null,null,null,null,null,null,null,null,null,"pear","pear",1,1,1.8518518518518517E-2,0.66666666666666607,0.68518518518518456,null,null,null,null,null,null,null,null,null,null,null,null,null,null,null,null,null,"pierogis","pierogis, cheese, tomato sauce",35,1,1.8867924528301886E-2,0.67924528301886788,0.69811320754716977,null,null,null,"two week meal plan"]
[1,null,null,null,null,null,null,null,null,null,null,null,null,"pickles","pickles",1,1,1.8518518518518517E-2,0.68518518518518456,0.70370370370370305,null,null,null,null,null,null,null,null,null,null,null,null,null,null,null,null,null,"pinchos on grill, rice","chicken or steak, bell peppers, rice",20,1,1.8867924528301886E-2,0.69811320754716977,0.71698113207547165,null,null,null,"daily: breakfasts, lunches, 2 snacks, 2 dinners per week"]
[1,null,null,null,null,null,null,null,null,null,null,null,null,"plum","plum",1,1,1.8518518518518517E-2,0.70370370370370305,0.72222222222222154,null,null,null,null,null,null,null,null,null,null,null,null,null,null,null,null,null,"pinchos on grill, roasted vegatables","chicken or steak, bell peppers, onion",40,1,1.8867924528301886E-2,0.71698113207547165,0.73584905660377353,null,null,null,"uses HelloFresh for 4 dinners per week already"]
[1,null,null,null,null,null,null,null,null,null,null,null,null,"popcorn","popcorn, butter, salt",6,1,1.8518518518518517E-2,0.72222222222222154,0.74074074074074003,null,null,null,null,null,null,null,null,null,null,null,null,null,null,null,null,null,"pizza","Boboli, pepperoni, green peppers, olives, cheese",25,1,1.8867924528301886E-2,0.73584905660377353,0.75471698113207542,null,null,null,"include food prep"]
[1,null,null,null,null,null,null,null,null,null,null,null,null,"pretzels","pretzels",1,1,1.8518518518518517E-2,0.74074074074074003,0.75925925925925852,null,null,null,null,null,null,null,null,null,null,null,null,null,null,null,null,null,"ribs","ribs, bbq sauce/rub",20,1,1.8867924528301886E-2,0.75471698113207542,0.7735849056603773,null,null,null,"include shopping list"]
[0,null,null,null,null,null,null,null,null,null,null,null,null,"prunes","prunes",1,1,1.8518518518518517E-2,0.75925925925925852,0.77777777777777701,null,null,null,null,null,null,null,null,null,null,null,null,null,null,null,null,null,"rotissere chicken, from grocery store","rotissere chicken",10,1,1.8867924528301886E-2,0.7735849056603773,0.79245283018867918]
[1,null,null,null,null,null,null,null,null,null,null,null,null,"pumpkin seeds","pumpkin seeds",1,1,1.8518518518518517E-2,0.77777777777777701,0.7962962962962955,null,null,null,null,null,null,null,null,null,null,null,null,null,null,null,null,null,"smoked gouda quesadilla","tortilla, gouda cheese, additional cheese",30,1,1.8867924528301886E-2,0.79245283018867918,0.81132075471698106]
[1,null,null,null,null,null,null,null,null,null,null,null,null,"raisins","raisins",1,1,1.8518518518518517E-2,0.7962962962962955,0.81481481481481399,null,null,null,null,null,null,null,null,null,null,null,null,null,null,null,null,null,"sopa de salchichon","macaroni, spices, salami, tomato paste",40,1,1.8867924528301886E-2,0.81132075471698106,0.83018867924528295]
[1,null,null,null,null,null,null,null,null,null,null,null,null,"rice cakes","rice cakes",1,1,1.8518518518518517E-2,0.81481481481481399,0.83333333333333248,null,null,null,null,null,null,null,null,null,null,null,null,null,null,null,null,null,"speghetti carbonara","speghetti, bacon, butter, milk, tomato sauce",30,1,1.8867924528301886E-2,0.83018867924528295,0.84905660377358483]
[1,null,null,null,null,null,null,null,null,null,null,null,null,"sardines","can of sardines",2,1,1.8518518518518517E-2,0.83333333333333248,0.85185185185185097,null,null,null,null,null,null,null,null,null,null,null,null,null,null,null,null,null,"speghetti w meatballs","speghetti, meatballs, tomato sauce",15,1,1.8867924528301886E-2,0.84905660377358483,0.86792452830188671]
[0,null,null,null,null,null,null,null,null,null,null,null,null,"string cheese","string cheese",1,1,1.8518518518518517E-2,0.85185185185185097,0.87037037037036946,null,null,null,null,null,null,null,null,null,null,null,null,null,null,null,null,null,"speghetti w salchichon","speghetti, tomato sauce, salami",40,1,1.8867924528301886E-2,0.86792452830188671,0.88679245283018859]
[0,null,null,null,null,null,null,null,null,null,null,null,null,"string cheese wrapped w ham","string cheese, ham lunch meat",3,1,1.8518518518518517E-2,0.87037037037036946,0.88888888888888795,null,null,null,null,null,null,null,null,null,null,null,null,null,null,null,null,null,"stuffed shells","large pasta shells, ricotta cheese, additional cheese, tomato sauce",60,1,1.8867924528301886E-2,{"$f":"AR48","v":0.88679245283018859},{"$f":"AQ49+AP49","v":0.90566037735849048}]
[1,null,null,null,null,null,null,null,null,null,null,null,null,"string cheese wrapped w turkey","string cheese, turkey lunch meat",3,1,1.8518518518518517E-2,0.88888888888888795,0.90740740740740644,null,null,null,null,null,null,null,null,null,null,null,null,null,null,null,null,null,"tom ka ga","chicken tenderloin, coconut milk, lemongrass",50,1,1.8867924528301886E-2,0.90566037735849048,0.92452830188679236]
[1,null,null,null,null,null,null,null,null,null,null,null,null,"sunflower seeds","sunflower seeds",1,1,1.8518518518518517E-2,0.90740740740740644,0.92592592592592493,null,null,null,null,null,null,null,null,null,null,null,null,null,null,null,null,null,"tomato tortellini soup","tortellini pasta, tomato soup",30,1,1.8867924528301886E-2,{"$f":"AR50","v":0.92452830188679236},{"$f":"AQ51+AP51","v":0.94339622641509424}]
[1,null,null,null,null,null,null,null,null,null,null,null,null,"trail mix","trail mix",1,1,1.8518518518518517E-2,0.92592592592592493,0.94444444444444342,null,null,null,null,null,null,null,null,null,null,null,null,null,null,null,null,null,"tomato with mozzerella, balsamic vineagar","tomato, fresh mozz cheese, balsamic vineagar, olive oil",20,1,1.8867924528301886E-2,{"$f":"AR51","v":0.94339622641509424},{"$f":"AQ52+AP52","v":0.96226415094339612}]
[1,null,null,null,null,null,null,null,null,null,null,null,null,"walnuts","walnuts",1,1,1.8518518518518517E-2,0.94444444444444342,0.96296296296296191,null,null,null,null,null,null,null,null,null,null,null,null,null,null,null,null,null,"tortellini with pastachio pesto","tortellini pasta, pastachio, olive oil",30,1,1.8867924528301886E-2,0.96226415094339612,0.98113207547169801]
[0,null,null,null,null,null,null,null,null,null,null,null,null,"Wheat Thins","Wheat Thins",1,1,1.8518518518518517E-2,0.96296296296296191,0.9814814814814804,null,null,null,null,null,null,null,null,null,null,null,null,null,null,null,null,null,"Vietnamese restaurant","pho, rice, egg rolls",0,1,1.8867924528301886E-2,0.98113207547169801,0.99999999999999989]
[1,null,null,null,null,null,null,null,null,null,null,null,null,"yogurt","yogurt",1,1,1.8518518518518517E-2,0.9814814814814804,0.99999999999999889]
[1]
[1]
[1]
[0]
[1]
[1]
[1]
[1]
[1]
[1]
[1]
[1]
[1]
[1]
[1]
[1]
[1]
[1]
[1]
[1]
[0]
[1]
[1]
[1]
[1]
[1]
[1]
[1]
[1]
[1]
[1]
[1]
[1]
[1]
[1]
[1]
[1]
[1]
[1]
[1]
[1]
[0]
[1]
[1]
[1]

{"sheet":"Sheet2","index":1,"n_rows":500,"n_cols":1,"rows_kept":500,"cut":false,"hidden":false,"merged":[]}
[1]
[0]
[1]
[0]
[0]
[0]
[0]
[1]
[0]
[0]
[0]
[0]
[0]
[0]
[0]
[1]
[1]
[0]
[0]
[1]
[0]
[1]
[0]
[1]
[0]
[0]
[0]
[0]
[0]
[0]
[0]
[0]
[1]
[0]
[1]
[1]
[0]
[0]
[0]
[0]
[0]
[1]
[0]
[1]
[1]
[0]
[0]
[1]
[1]
[1]
[1]
[0]
[0]
[1]
[0]
[1]
[0]
[1]
[1]
[0]
[0]
[0]
[1]
[1]
[1]
[0]
[1]
[0]
[1]
[1]
[0]
[1]
[1]
[1]
[0]
[1]
[1]
[0]
[1]
[0]
[0]
[1]
[0]
[0]
[1]
[0]
[1]
[0]
[0]
[0]
[0]
[1]
[0]
[1]
[0]
[0]
[0]
[0]
[0]
[0]
[0]
[0]
[0]
[1]
[1]
[0]
[0]
[0]
[0]
[0]
[1]
[0]
[1]
[1]
[0]
[1]
[0]
[0]
[0]
[0]
[0]
[0]
[0]
[0]
[1]
[0]
[1]
[1]
[0]
[1]
[1]
[0]
[0]
[0]
[0]
[1]
[1]
[1]
[1]
[1]
[0]
[1]
[0]
[1]
[1]
[0]
[0]
[1]
[0]
[0]
[0]
[1]
[1]
[1]
[0]
[1]
[0]
[0]
[0]
[1]
[1]
[1]
[1]
[0]
[0]
[1]
[1]
[1]
[0]
[0]
[1]
[0]
[0]
[1]
[0]
[0]
[0]
[1]
[1]
[0]
[0]
[1]
[1]
[0]
[0]
[0]
[0]
[1]
[0]
[1]
[1]
[1]
[0]
[1]
[0]
[0]
[1]
[1]
[1]
[1]
[1]
[0]
[0]
[0]
[1]
[0]
[1]
[0]
[0]
[1]
[0]
[1]
[1]
[1]
[1]
[1]
[0]
[0]
[1]
[0]
[1]
[0]
[0]
[1]
[1]
[1]
[1]
[1]
[0]
[1]
[0]
[0]
[0]
[1]
[1]
[1]
[1]
[1]
[0]
[0]
[1]
[0]
[0]
[0]
[0]
[0]
[0]
[0]
[1]
[1]
[0]
[0]
[0]
[1]
[0]
[1]
[1]
[1]
[1]
[0]
[0]
[0]
[0]
[0]
[0]
[0]
[0]
[1]
[0]
[0]
[0]
[0]
[1]
[0]
[0]
[1]
[1]
[1]
[1]
[1]
[1]
[0]
[0]
[1]
[0]
[1]
[1]
[0]
[1]
[0]
[1]
[1]
[0]
[0]
[0]
[0]
[0]
[0]
[0]
[1]
[0]
[0]
[0]
[1]
[0]
[0]
[0]
[1]
[0]
[0]
[0]
[0]
[0]
[1]
[1]
[0]
[0]
[1]
[0]
[0]
[1]
[0]
[0]
[0]
[1]
[0]
[1]
[0]
[0]
[0]
[1]
[0]
[1]
[1]
[1]
[1]
[1]
[0]
[1]
[0]
[0]
[0]
[0]
[1]
[1]
[0]
[0]
[1]
[1]
[0]
[0]
[1]
[0]
[0]
[1]
[0]
[1]
[1]
[1]
[0]
[0]
[0]
[0]
[1]
[0]
[0]
[0]
[0]
[1]
[0]
[1]
[0]
[0]
[1]
[0]
[0]
[0]
[0]
[1]
[1]
[1]
[1]
[1]
[0]
[0]
[0]
[1]
[1]
[1]
[0]
[0]
[1]
[1]
[1]
[0]
[1]
[1]
[0]
[0]
[1]
[1]
[0]
[0]
[0]
[1]
[0]
[0]
[0]
[0]
[0]
[0]
[1]
[1]
[0]
[1]
[1]
[1]
[1]
[1]
[1]
[1]
[0]
[1]
[0]
[1]
[1]
[1]
[1]
[0]
[0]
[1]
[1]
[0]
[0]
[0]
[0]
[1]
[0]
[1]
[0]
[1]
[0]
[1]
[1]
[1]
[0]
[0]
[1]
[0]
[1]
[0]
[0]
[1]
[1]
[0]
[0]
[1]
[0]
[0]
[0]
[0]
[1]
[1]
[0]
[1]
[1]
[0]
[0]
[0]
[0]
[0]
[1]
[0]
[1]
[1]
[0]
[0]
[1]
[1]
[0]
[1]
[0]
[0]
[0]
[1]
[0]
[0]
[1]
[1]
[0]
[1]
[1]
[1]
[0]
[1]
[1]
[0]
[0]
[0]
[1]